[Event "Asian Zonal 3.2 Women 2019"]
[Site "Dhaka"]
[Date "2019.03.20"]
[Round "1.11"]
[White "Sultana, Sharmin Shirin"]
[Black "Lohani, Sujana"]
[Result "0-1"]
[ECO "C85"]
[WhiteElo "1981"]
[BlackElo "1610"]
[Annotator "NA RC"]
[PlyCount "45"]
[EventDate "2019.03.14"]
[EventType "swiss"]
[EventCountry "BAN"]
[SourceTitle "playchess.com"]
[Source "ChessBase"]
[SourceQuality "1"]
[TimeControl "5400+30"]

1. e4 {[%emt 0:00:00]} e5 {[%emt 0:00:00]} 2. Nf3 {[%emt 0:00:00]} Nc6 {[%emt 0:00:06]} 3. Bb5 {[%emt 0:00:02]} a6 {[%emt 0:00:28]} 4. Ba4 {[%emt 0:00:08]} Nf6 {[%emt 0:01:07]} 5. O-O {[%emt 0:00:11]} Be7 {[%emt 0:00:42]} 6. Bxc6 {[%emt 0:00:07]} dxc6 {[%emt 0:00:07]} 7. d3 {[%emt 0:00:05]} Nd7 {[%emt 0:00:37]} 8. Nbd2 {[%emt 0:00:07]} O-O {[%emt 0:02:11]} 9. Nc4 {[%emt 0:00:14]} f6 {[%emt 0:02:06]} 10. Nh4 {[%emt 0:00:08]} Nc5 {[%emt 0:00:27]} 11. Nf5 {[%emt 0:00:06]} Bxf5 {[%emt 0:05:50]} 12. exf5 {[%emt 0:00:04]} Qd5 {[%emt 0:01:41]} 13. Qg4 {[%emt 0:00:08]} Rfe8 {[%emt 0:04:06]} 14. Re1 {[%emt 0:04:54]} e4 {[%emt 0:10:22]} 15. b4 {[%emt 0:38:20]} exd3 {[%emt 0:03:55]} 16. Bh6 {[%emt 0:05:45]} Bf8 {[%emt 0:00:16]} 17. bxc5 {[%emt 0:00:30]} dxc2 {[%emt 0:00:47]} 18. Ne3 {[%emt 0:07:24]} Qd3 {[%emt 0:02:20]} 19. g3 {[%emt 0:05:47]} Re4 {[%emt 0:26:15]} 20. Bf4 {[%emt 0:01:04]} Bxc5 {[%emt 0:00:57]} 21. Qe2 {[%emt 0:06:01]} Qc3 {[%emt 0:00:34]} 22. Rac1 {[%emt 0:01:25]} Bxe3 {[%emt 0:15:31]} 23. Bxe3 {[%emt 0:03:12]} 0-1

[Event "Asian Zonal 3.2 Women 2019"]
[Site "Dhaka"]
[Date "2019.03.20"]
[Round "1.12"]
[White "Kazi Zarin, Tasnim"]
[Black "Khan, Nazrana"]
[Result "0-1"]
[ECO "B43"]
[WhiteElo "1567"]
[BlackElo "1948"]
[Annotator "NA RC"]
[PlyCount "70"]
[EventDate "2019.03.14"]
[EventType "swiss"]
[EventCountry "BAN"]
[SourceTitle "playchess.com"]
[Source "ChessBase"]
[SourceQuality "1"]
[TimeControl "5400+30"]

1. e4 {[%emt 0:00:00]} c5 {[%emt 0:00:00]} 2. Nf3 {[%emt 0:00:00]} e6 {[%emt 0:00:00]} 3. d4 cxd4 {[%emt 0:00:04]} 4. Nxd4 {[%emt 0:00:00]} a6 {[%emt 0:00:17]} 5. a3 {[%emt 0:00:22]} Nf6 {[%emt 0:01:16]} 6. Nc3 {[%emt 0:00:10]} Qc7 {[%emt 0:00:59]} 7. Be3 {[%emt 0:01:31]} b5 {[%emt 0:02:33]} 8. Bd3 {[%emt 1:31:57]} Bb7 {[%emt 0:10:43]} 9. O-O {[%emt 0:00:00]} d5 {[%emt 0:04:49]} 10. exd5 {[%emt 0:00:00]} Nxd5 {[%emt 0:01:31]} 11. Nxd5 {[%emt 0:00:00]} Bxd5 {[%emt 0:00:14]} 12. Qd2 {[%emt 0:00:00]} Be7 {[%emt 0:06:27]} 13. Rae1 {[%emt 0:00:00]} O-O {[%emt 0:02:49]} 14. Bh6 {[%emt 0:00:00]} Bf6 {[%emt 0:05:37]} 15. Bf4 {[%emt 0:00:00]} Qb7 {[%emt 0:04:14]} 16. Be5 {[%emt 0:00:00]} Nd7 {[%emt 0:04:21]} 17. Bxf6 {[%emt 0:00:00]} Nxf6 {[%emt 0:00:34]} 18. f3 {[%emt 0:00:00]} Bc4 {[%emt 0:04:21]} 19. Bxc4 {[%emt 0:00:00]} bxc4 {[%emt 0:00:10]} 20. c3 {[%emt 0:00:00]} Rfd8 {[%emt 0:02:54]} 21. Qf2 {[%emt 0:00:00]} Qc7 {[%emt 0:08:17]} 22. Qe3 {[%emt 0:00:00]} Rab8 {[%emt 0:02:23]} 23. Rf2 {[%emt 0:00:00]} Rd5 {[%emt 0:04:03]} 24. Nxe6 {[%emt 0:00:00]} fxe6 {[%emt 0:02:39]} 25. Qxe6+ {[%emt 0:00:00]} Kh8 {[%emt 0:06:33]} 26. Qxa6 {[%emt 0:00:00]} Qc5 {[%emt 0:05:08]} 27. Kf1 {[%emt 0:00:00]} h6 {[%emt 0:02:27]} 28. Qa4 {[%emt 0:00:00]} Rbd8 {[%emt 0:03:13]} 29. Qc2 {[%emt 0:00:00]} Qd6 {[%emt 0:03:55]} 30. g3 {[%emt 0:02:52]} Rd3 {[%emt 0:01:44]} 31. Kg2 {[%emt 0:04:02]} Qc6 {[%emt 0:00:42]} 32. Ree2 {[%emt 0:00:16]} Ng4 {[%emt 0:02:06]} 33. Rf1 {[%emt 0:03:08]} Ne3+ {[%emt 0:00:42]} 34. Rxe3 {[%emt 0:00:22]} Rxe3 {[%emt 0:00:16]} 35. Qc1 {[%emt 0:02:19]} Rdd3 {[%emt 0:01:13]} 0-1

[Event "Asian Zonal 3.2 Women 2019"]
[Site "Dhaka"]
[Date "2019.03.20"]
[Round "2.9"]
[White "Sultana, Zakia"]
[Black "Parveen, Seyda Shabana"]
[Result "1/2-1/2"]
[ECO "A48"]
[WhiteElo "1826"]
[BlackElo "2073"]
[Annotator "NA RC"]
[PlyCount "35"]
[EventDate "2019.03.14"]
[EventType "swiss"]
[EventCountry "BAN"]
[SourceTitle "playchess.com"]
[Source "ChessBase"]
[SourceQuality "1"]
[TimeControl "5400+30"]

1. d4 {[%emt 0:00:00]} Nf6 {[%emt 0:00:00]} 2. Nf3 {[%emt 0:00:00]} d6 {[%emt 0:00:26]} 3. Bf4 {[%emt 0:00:48]} g6 {[%emt 0:00:37]} 4. h3 {[%emt 0:00:15]} Bg7 {[%emt 0:00:14]} 5. e3 {[%emt 0:00:12]} O-O {[%emt 0:00:35]} 6. Be2 {[%emt 0:00:09]} b6 {[%emt 0:02:45]} 7. Nbd2 {[%emt 0:01:15]} Bb7 {[%emt 0:00:16]} 8. c3 {[%emt 0:00:31]} Nbd7 {[%emt 0:00:43]} 9. O-O {[%emt 0:01:37]} Re8 {[%emt 0:01:09]} 10. Bh2 {[%emt 0:02:51]} e5 {[%emt 0:03:41]} 11. dxe5 {[%emt 0:03:29]} dxe5 {[%emt 0:00:38]} 12. Nc4 {[%emt 0:01:08]} Ne4 {[%emt 0:07:12]} 13. Qc2 {[%emt 0:12:59]} Ng5 {[%emt 0:02:06]} 14. Ncd2 {[%emt 0:03:46]} Nxf3+ {[%emt 0:04:35]} 15. Bxf3 {[%emt 0:00:55]} Bxf3 {[%emt 0:00:33]} 16. Nxf3 {[%emt 0:00:14]} Qe7 {[%emt 0:01:28]} 17. Rfd1 {[%emt 0:00:45]} Nf8 {[%emt 0:04:46]} 18. Qa4 {[%emt 0:02:22]} 1/2-1/2

[Event "Asian Zonal 3.2 Women 2019"]
[Site "Dhaka"]
[Date "2019.03.20"]
[Round "2.10"]
[White "Parveen, Tanima"]
[Black "Noshin, Anjum"]
[Result "1-0"]
[ECO "C54"]
[WhiteElo "1990"]
[BlackElo "1722"]
[Annotator "NA RC"]
[PlyCount "93"]
[EventDate "2019.03.14"]
[EventType "swiss"]
[EventCountry "BAN"]
[SourceTitle "playchess.com"]
[Source "ChessBase"]
[SourceQuality "1"]
[TimeControl "5400+30"]

1. e4 {[%emt 0:00:00]} e5 {[%emt 0:00:00]} 2. Nf3 {[%emt 0:00:00]} Nc6 {[%emt 0:00:01]} 3. Bc4 {[%emt 0:00:02]} Bc5 {[%emt 0:00:07]} 4. c3 {[%emt 0:00:41]} Nf6 {[%emt 0:00:23]} 5. d3 {[%emt 0:00:34]} a6 {[%emt 0:00:52]} 6. O-O {[%emt 0:00:35]} O-O {[%emt 0:02:46]} 7. d4 {[%emt 0:01:51]} Ba7 {[%emt 0:13:39]} 8. dxe5 {[%emt 0:15:08]} Nxe4 {[%emt 0:09:23]} 9. b4 {[%emt 0:13:44]} h6 {[%emt 0:29:51]} 10. Bb3 {[%emt 0:13:30]} d6 {[%emt 0:05:24]} 11. Bd5 {[%emt 0:07:53]} Bf5 {[%emt 0:09:14]} 12. Qe2 {[%emt 0:06:53]} Ng5 {[%emt 0:08:00]} 13. Nxg5 {[%emt 0:01:58]} hxg5 {[%emt 0:00:06]} 14. Bxc6 {[%emt 0:01:52]} bxc6 {[%emt 0:00:11]} 15. Qf3 {[%emt 0:00:29]} Bd7 {[%emt 0:07:54]} 16. exd6 {[%emt 0:01:10]} cxd6 {[%emt 0:00:17]} 17. Qg3 {[%emt 0:00:32]} g4 {[%emt 0:04:55]} 18. Qxd6 {[%emt 0:03:46]} Bb8 {[%emt 0:00:17]} 19. Qd4 {[%emt 0:04:00]} Qh4 {[%emt 0:01:01]} 20. Bf4 {[%emt 0:01:57]} Rd8 {[%emt 0:01:55]} 21. Bxb8 {[%emt 0:03:17]} Raxb8 {[%emt 0:00:14]} 22. Nd2 {[%emt 0:03:49]} Bf5 {[%emt 0:01:49]} 23. Qf4 {[%emt 0:00:17]} Bd3 {[%emt 0:01:43]} 24. Rfe1 {[%emt 0:00:56]} Rb5 {[%emt 0:00:52]} 25. Nf3 {[%emt 0:00:47]} Qh5 {[%emt 0:00:25]} 26. Nd4 {[%emt 0:00:42]} Rb6 {[%emt 0:01:02]} 27. Rad1 {[%emt 0:01:52]} Bc4 {[%emt 0:00:35]} 28. Qc7 {[%emt 0:01:19]} Rdb8 {[%emt 0:00:31]} 29. Nxc6 {[%emt 0:00:24]} R6b7 {[%emt 0:00:29]} 30. Ne7+ {[%emt 0:00:25]} Kh8 {[%emt 0:00:24]} 31. Qxc4 {[%emt 0:04:32]} Rxe7 {[%emt 0:00:29]} 32. Rxe7 {[%emt 0:02:43]} g3 {[%emt 0:00:04]} 33. Rde1 {[%emt 0:00:12]} Qxh2+ {[%emt 0:00:25]} 34. Kf1 {[%emt 0:00:00]} Qh1+ {[%emt 0:00:28]} 35. Ke2 {[%emt 0:00:07]} Qh5+ {[%emt 0:00:46]} 36. Kd2 {[%emt 0:03:22]} Rd8+ {[%emt 0:00:04]} 37. Kc1 {[%emt 0:00:18]} gxf2 {[%emt 0:00:35]} 38. Re8+ {[%emt 0:01:17]} Kh7 {[%emt 0:00:49]} 39. g4 {[%emt 0:05:45]} Qg5+ {[%emt 0:00:22]} 40. Kb1 {[%emt 0:00:00]} Rxe8 {[%emt 0:00:00]} 41. Rxe8 {[%emt 0:00:00]} Qg6+ {[%emt 0:00:00]} 42. Kb2 {[%emt 0:00:00]} f5 {[%emt 0:00:00]} 43. Rf8 {[%emt 0:00:00]} Qd6 {[%emt 0:00:00]} 44. Qg8+ {[%emt 0:00:00]} Kh6 {[%emt 0:00:00]} 45. Qh8+ {[%emt 0:00:00]} Kg5 {[%emt 0:00:00]} 46. Qh5+ {[%emt 0:00:00]} Kf4 {[%emt 0:00:00]} 47. Qxf5+ {[%emt 0:00:00]} 1-0

[Event "Asian Zonal 3.2 Women 2019"]
[Site "Dhaka"]
[Date "2019.03.20"]
[Round "2.11"]
[White "Khan, Nazrana"]
[Black "Jannatul, Ferdous"]
[Result "1-0"]
[ECO "D49"]
[WhiteElo "1948"]
[BlackElo "1704"]
[Annotator "NA RC"]
[PlyCount "79"]
[EventDate "2019.03.14"]
[EventType "swiss"]
[EventCountry "BAN"]
[SourceTitle "playchess.com"]
[Source "ChessBase"]
[SourceQuality "1"]
[TimeControl "5400+30"]

1. d4 {[%emt 0:00:00]} d5 {[%emt 0:00:00]} 2. c4 {[%emt 0:00:15]} c6 {[%emt 0:00:00]} 3. Nc3 {[%emt 0:01:15]} Nf6 {[%emt 0:00:00]} 4. Nf3 {[%emt 0:00:27]} e6 {[%emt 0:00:33]} 5. e3 {[%emt 0:00:44]} Nbd7 {[%emt 0:00:10]} 6. Bd3 {[%emt 0:00:33]} dxc4 {[%emt 0:00:13]} 7. Bxc4 {[%emt 0:00:07]} b5 {[%emt 0:00:31]} 8. Bd3 {[%emt 0:00:14]} a6 {[%emt 0:00:31]} 9. e4 {[%emt 0:00:53]} c5 {[%emt 0:02:31]} 10. e5 {[%emt 0:05:22]} cxd4 {[%emt 0:00:42]} 11. Nxb5 {[%emt 0:03:56]} Ng4 {[%emt 0:14:02]} 12. Nbxd4 {[%emt 0:09:45]} Ngxe5 {[%emt 0:00:21]} 13. Be4 {[%emt 0:04:46]} Rb8 {[%emt 0:02:07]} 14. O-O {[%emt 0:01:10]} Bb7 {[%emt 0:03:54]} 15. Qe2 {[%emt 0:04:35]} Nxf3+ {[%emt 0:04:15]} 16. Nxf3 {[%emt 0:00:49]} Bxe4 {[%emt 0:01:23]} 17. Qxe4 {[%emt 0:00:25]} Nc5 {[%emt 0:01:16]} 18. Qe2 {[%emt 0:05:20]} Qd3 {[%emt 0:14:05]} 19. Qe5 {[%emt 0:05:35]} Qd6 {[%emt 0:13:46]} 20. Bf4 {[%emt 0:05:33]} Rb6 {[%emt 0:16:52]} 21. Rad1 {[%emt 0:07:20]} Qxe5 {[%emt 0:00:40]} 22. Bxe5 {[%emt 0:00:45]} f6 {[%emt 0:01:47]} 23. Bc3 {[%emt 0:03:57]} e5 {[%emt 0:08:29]} 24. b3 {[%emt 0:11:47]} Ne4 {[%emt 0:01:25]} 25. Ba5 {[%emt 0:01:42]} Rd6 {[%emt 0:01:50]} 26. Rc1 {[%emt 0:05:10]} Be7 {[%emt 0:04:48]} 27. Rfe1 {[%emt 0:01:42]} Rd5 {[%emt 0:02:11]} 28. Rc8+ {[%emt 0:02:17]} Kf7 {[%emt 0:04:18]} 29. Rxh8 {[%emt 0:00:35]} Nxf2 {[%emt 0:00:19]} 30. Kxf2 {[%emt 0:02:11]} Rxa5 {[%emt 0:00:04]} 31. Re2 {[%emt 0:00:43]} h6 {[%emt 0:00:26]} 32. Rc8 {[%emt 0:01:17]} Bc5+ {[%emt 0:01:07]} 33. Kf1 {[%emt 0:01:13]} Bb4 {[%emt 0:00:55]} 34. Rb8 {[%emt 0:01:53]} Bd6 {[%emt 0:00:42]} 35. Rb7+ {[%emt 0:01:01]} Kg6 {[%emt 0:00:14]} 36. Rd2 {[%emt 0:02:02]} e4 {[%emt 0:00:53]} 37. Nh4+ {[%emt 0:02:19]} Kg5 {[%emt 0:00:29]} 38. g3 {[%emt 0:01:29]} e3 {[%emt 0:00:38]} 39. Rxg7+ {[%emt 0:01:03]} Kh5 {[%emt 0:00:15]} 40. Rxd6 {[%emt 0:00:00]} 1-0

[Event "Asian Zonal 3.2 Women 2019"]
[Site "Dhaka"]
[Date "2019.03.20"]
[Round "2.12"]
[White "Premanath, Dinushki"]
[Black "Ahmed, Walijah"]
[Result "1/2-1/2"]
[ECO "B48"]
[WhiteElo "1863"]
[BlackElo "1691"]
[Annotator "NA RC"]
[PlyCount "164"]
[EventDate "2019.03.14"]
[EventType "swiss"]
[EventCountry "BAN"]
[SourceTitle "playchess.com"]
[Source "ChessBase"]
[SourceQuality "1"]
[TimeControl "5400+30"]

1. e4 {[%emt 0:00:00]} c5 {[%emt 0:00:00]} 2. Nf3 {[%emt 0:00:00]} e6 {[%emt 0:00:00]} 3. d4 {[%emt 0:00:00]} cxd4 {[%emt 0:00:00]} 4. Nxd4 {[%emt 0:00:00]} a6 {[%emt 0:00:00]} 5. Bd3 {[%emt 0:00:05]} Nf6 {[%emt 0:00:08]} 6. O-O {[%emt 0:00:14]} Qc7 {[%emt 0:00:57]} 7. Nc3 {[%emt 0:00:48]} b5 {[%emt 0:00:45]} 8. a3 {[%emt 0:12:26]} Bb7 {[%emt 0:03:28]} 9. Qe2 {[%emt 0:03:57]} Nc6 {[%emt 0:11:52]} 10. Be3 {[%emt 0:01:48]} Be7 {[%emt 0:03:22]} 11. f4 {[%emt 0:02:43]} Nxd4 {[%emt 0:28:05]} 12. Bxd4 {[%emt 0:00:33]} Bc5 {[%emt 0:00:09]} 13. Bxc5 {[%emt 0:01:16]} Qxc5+ {[%emt 0:01:41]} 14. Kh1 {[%emt 0:00:07]} d5 {[%emt 0:01:39]} 15. e5 {[%emt 0:02:04]} Nd7 {[%emt 0:02:32]} 16. Qg4 {[%emt 0:00:30]} O-O {[%emt 0:01:25]} 17. Rae1 {[%emt 0:03:42]} b4 {[%emt 0:10:45]} 18. axb4 {[%emt 0:20:41]} Qxb4 {[%emt 0:00:36]} 19. Re3 {[%emt 0:15:58]} g6 {[%emt 0:07:55]} 20. Nd1 {[%emt 0:11:01]} Rfe8 {[%emt 0:06:03]} 21. Nf2 {[%emt 0:16:17]} Bc6 {[%emt 0:10:23]} 22. Rh3 {[%emt 0:01:47]} Kg7 {[%emt 0:01:21]} 23. Qg5 {[%emt 0:01:03]} Rh8 {[%emt 0:02:43]} 24. Ng4 {[%emt 0:01:03]} Bb5 {[%emt 0:03:14]} 25. c3 {[%emt 0:02:23]} Qc5 {[%emt 0:01:10]} 26. b4 {[%emt 0:01:10]} Qf8 {[%emt 0:00:31]} 27. Qh6+ {[%emt 0:01:19]} Kg8 {[%emt 0:00:05]} 28. Qg5 {[%emt 0:00:20]} Kg7 {[%emt 0:00:51]} 29. Rd1 {[%emt 0:00:29]} Bxd3 {[%emt 0:00:46]} 30. Rhxd3 {[%emt 0:00:22]} h6 {[%emt 0:01:37]} 31. Qh4 {[%emt 0:00:06]} Qd8 {[%emt 0:00:22]} 32. Qf2 {[%emt 0:00:54]} Nb6 {[%emt 0:00:41]} 33. Ne3 {[%emt 0:00:16]} Qc7 {[%emt 0:00:34]} 34. Ra1 {[%emt 0:00:45]} Nc4 {[%emt 0:00:21]} 35. Nc2 {[%emt 0:00:46]} Rhc8 {[%emt 0:00:43]} 36. Nd4 {[%emt 0:00:07]} Qb6 {[%emt 0:00:36]} 37. Rg3 {[%emt 0:00:39]} Kh7 {[%emt 0:00:28]} 38. Rh3 {[%emt 0:00:09]} Qd8 {[%emt 0:00:17]} 39. Re1 {[%emt 0:00:36]} Na3 {[%emt 0:00:21]} 40. Qe2 {[%emt 0:00:00]} Qd7 {[%emt 0:00:00]} 41. Qd2 {[%emt 0:00:00]} Nc4 {[%emt 0:00:00]} 42. Qc1 {[%emt 0:00:00]} Rg8 {[%emt 0:00:00]} 43. Nf3 {[%emt 0:00:00]} Kg7 {[%emt 0:00:00]} 44. f5 {[%emt 0:00:00]} h5 {[%emt 0:00:00]} 45. fxg6 {[%emt 0:00:20]} fxg6 {[%emt 0:00:00]} 46. Qg5 {[%emt 0:01:09]} Qd8 {[%emt 0:00:00]} 47. Qg3 {[%emt 0:01:09]} Kh6 {[%emt 0:00:00]} 48. Qf4+ {[%emt 0:01:30]} g5 {[%emt 0:00:00]} 49. Qf7 {[%emt 0:00:18]} Rg6 {[%emt 0:00:00]} 50. g4 {[%emt 0:01:07]} h4 {[%emt 0:00:00]} 51. Nd4 {[%emt 0:00:55]} Qg8 {[%emt 0:00:00]} 52. Rf3 {[%emt 0:00:22]} Nd2 {[%emt 0:00:00]} 53. Rf6 {[%emt 0:00:28]} Qxf7 {[%emt 0:00:00]} 54. Rxf7 {[%emt 0:00:07]} Ne4 {[%emt 0:00:01]} 55. Re7 {[%emt 0:00:53]} Nf2+ {[%emt 0:00:44]} 56. Kg2 {[%emt 0:00:23]} Nd3 {[%emt 0:00:39]} 57. Re3 {[%emt 0:00:47]} Nf4+ {[%emt 0:00:06]} 58. Kg1 {[%emt 0:00:12]} Rg7 {[%emt 0:01:03]} 59. Rxg7 {[%emt 0:00:53]} Kxg7 {[%emt 0:00:07]} 60. Re1 {[%emt 0:00:12]} Rc8 {[%emt 0:02:07]} 61. Re3 {[%emt 0:00:37]} Kf7 {[%emt 0:04:12]} 62. Nf3 {[%emt 0:00:25]} Rxc3 {[%emt 0:01:59]} 63. Nxg5+ {[%emt 0:00:38]} Ke7 {[%emt 0:00:12]} 64. Rxc3 {[%emt 0:00:31]} Ne2+ {[%emt 0:00:06]} 65. Kf1 {[%emt 0:00:18]} Nxc3 {[%emt 0:00:03]} 66. Nf3 {[%emt 0:00:45]} Na2 {[%emt 0:00:11]} 67. b5 {[%emt 0:00:31]} axb5 {[%emt 0:00:09]} 68. Nxh4 {[%emt 0:00:04]} b4 {[%emt 0:00:27]} 69. Ke1 {[%emt 0:00:30]} b3 {[%emt 0:01:29]} 70. Kd2 {[%emt 0:00:26]} Nb4 {[%emt 0:00:23]} 71. Kc3 {[%emt 0:00:36]} b2 {[%emt 0:00:07]} 72. Kxb2 {[%emt 0:00:08]} Nd3+ {[%emt 0:00:03]} 73. Kc3 {[%emt 0:00:11]} Nxe5 {[%emt 0:00:03]} 74. g5 {[%emt 0:00:26]} Nc6 {[%emt 0:02:56]} 75. Ng6+ {[%emt 0:00:47]} Kf7 {[%emt 0:00:06]} 76. Nf4 {[%emt 0:00:05]} Ne5 {[%emt 0:00:17]} 77. h4 {[%emt 0:00:25]} Nf3 {[%emt 0:01:50]} 78. g6+ {[%emt 0:00:56]} Kf6 {[%emt 0:00:22]} 79. h5 {[%emt 0:00:04]} Nh4 {[%emt 0:00:23]} 80. Kd3 {[%emt 0:00:35]} Nxg6 {[%emt 0:00:38]} 81. Nxg6 {[%emt 0:00:53]} Kg5 {[%emt 0:00:07]} 82. Nf4 {[%emt 0:00:30]} e5 {[%emt 0:00:02] Ke4 [%clk 0:00:00]} 1/2-1/2

[Event "Asian Zonal 3.2 Women 2019"]
[Site "Dhaka"]
[Date "2019.03.20"]
[Round "4.10"]
[White "Sultana, Zakia"]
[Black "Ranasinghe, S D"]
[Result "1/2-1/2"]
[ECO "D00"]
[WhiteElo "1826"]
[BlackElo "1829"]
[Annotator "NA RC"]
[PlyCount "110"]
[EventDate "2019.03.14"]
[EventType "swiss"]
[EventCountry "BAN"]
[SourceTitle "playchess.com"]
[Source "ChessBase"]
[SourceQuality "1"]
[TimeControl "5400+30"]

1. d4 {[%emt 0:00:00]} d5 {[%emt 0:00:00]} 2. Bf4 {[%emt 0:00:01]} Nf6 {[%emt 0:00:00]} 3. e3 {[%emt 0:00:10]} e6 {[%emt 0:00:27]} 4. Nd2 {[%emt 0:00:31]} c5 {[%emt 0:00:14]} 5. c3 {[%emt 0:00:09]} Nc6 {[%emt 0:00:20]} 6. Bd3 {[%emt 0:00:33]} Be7 {[%emt 0:01:12]} 7. h3 {[%emt 0:00:27]} Qb6 {[%emt 0:07:53]} 8. Qc1 {[%emt 0:01:44]} Bd7 {[%emt 0:00:52]} 9. Ngf3 {[%emt 0:00:10]} Rc8 {[%emt 0:00:20]} 10. O-O {[%emt 0:01:23]} cxd4 {[%emt 0:00:25]} 11. exd4 {[%emt 0:00:21]} Nb4 {[%emt 0:00:24]} 12. Be2 {[%emt 0:03:08]} Bb5 {[%emt 0:00:15]} 13. Bxb5+ {[%emt 0:06:38]} Qxb5 {[%emt 0:00:06]} 14. Ne5 {[%emt 0:04:09]} Nd3 {[%emt 0:04:06]} 15. Nxd3 {[%emt 0:00:27]} Qxd3 {[%emt 0:00:03]} 16. Nf3 {[%emt 0:01:41]} Nh5 {[%emt 0:02:20]} 17. Bh2 {[%emt 0:00:45]} Nf6 {[%emt 0:10:08]} 18. Qd1 {[%emt 0:04:53]} Qxd1 {[%emt 0:00:40]} 19. Raxd1 {[%emt 0:01:02]} b5 {[%emt 0:00:03]} 20. Rc1 {[%emt 0:03:18]} Ne4 {[%emt 0:01:01]} 21. Rfd1 {[%emt 0:00:51]} O-O {[%emt 0:04:39]} 22. Kf1 {[%emt 0:00:59]} f6 {[%emt 0:01:24]} 23. Ke2 {[%emt 0:01:29]} Rc6 {[%emt 0:00:39]} 24. Bf4 {[%emt 0:02:53]} g5 {[%emt 0:00:43]} 25. Be3 {[%emt 0:00:18]} Rfc8 {[%emt 0:01:40]} 26. g4 {[%emt 0:05:34]} b4 {[%emt 0:05:33]} 27. cxb4 {[%emt 0:01:18]} Rc2+ {[%emt 0:00:16]} 28. Kf1 {[%emt 0:02:22]} Bxb4 {[%emt 0:00:13]} 29. a3 {[%emt 0:03:26]} Bd6 {[%emt 0:01:14]} 30. Ne1 {[%emt 0:00:49]} Rxc1 {[%emt 0:07:04]} 31. Rxc1 {[%emt 0:00:21]} Rxc1 {[%emt 0:01:09]} 32. Bxc1 {[%emt 0:00:10]} Bc7 {[%emt 0:00:31]} 33. f3 {[%emt 0:05:36]} Nd6 {[%emt 0:00:13]} 34. Ke2 {[%emt 0:00:53]} Bb6 {[%emt 0:00:38]} 35. Kd3 {[%emt 0:00:15]} Kf7 {[%emt 0:00:57]} 36. Nc2 {[%emt 0:00:29]} Kg6 {[%emt 0:00:49]} 37. a4 {[%emt 0:02:08]} h5 {[%emt 0:00:25]} 38. b3 {[%emt 0:00:21]} f5 {[%emt 0:00:54]} 39. Ba3 {[%emt 0:00:34]} Nc8 {[%emt 0:01:18]} 40. Ne3 {[%emt 0:00:00]} fxg4 {[%emt 0:00:00]} 41. fxg4 {[%emt 0:00:00]} Bc7 {[%emt 0:00:00]} 42. Nd1 {[%emt 0:00:00]} hxg4 {[%emt 0:00:00]} 43. hxg4 {[%emt 0:00:00]} Kf6 {[%emt 0:00:00]} 44. Nc3 {[%emt 0:00:00]} a6 {[%emt 0:00:00]} 45. Bc1 {[%emt 0:00:00]} Ne7 {[%emt 0:00:00]} 46. Nd1 {[%emt 0:00:00]} Ng6 {[%emt 0:00:00]} 47. Nf2 {[%emt 0:00:00]} e5 {[%emt 0:00:00]} 48. dxe5+ {[%emt 0:00:00]} Nxe5+ {[%emt 0:00:00]} 49. Ke2 {[%emt 0:00:00]} Nc6 {[%emt 0:00:00]} 50. Kd3 {[%emt 0:00:00]} Bb6 {[%emt 0:00:00]} 51. Nh3 {[%emt 0:00:00]} Ne5+ {[%emt 0:00:00]} 52. Ke2 {[%emt 0:00:00]} Nf7 {[%emt 0:00:00]} 53. Kd3 {[%emt 0:00:00]} Bc5 {[%emt 0:00:00]} 54. Bd2 {[%emt 0:00:00]} Ne5+ {[%emt 0:00:00]} 55. Ke2 {[%emt 0:00:00]} Nf7 {[%emt 0:00:00]} 1/2-1/2

[Event "Asian Zonal 3.2 Women 2019"]
[Site "Dhaka"]
[Date "2019.03.20"]
[Round "4.11"]
[White "Premanath, Dinushki"]
[Black "Sultana, Sharmin Shirin"]
[Result "0-1"]
[ECO "B48"]
[WhiteElo "1863"]
[BlackElo "1981"]
[Annotator "NA RC"]
[PlyCount "102"]
[EventDate "2019.03.14"]
[EventType "swiss"]
[EventCountry "BAN"]
[SourceTitle "playchess.com"]
[Source "ChessBase"]
[SourceQuality "1"]
[TimeControl "5400+30"]

1. e4 {[%emt 0:00:00]} c5 {[%emt 0:00:00]} 2. Nf3 {[%emt 0:00:00]} e6 {[%emt 0:00:00]} 3. d4 {[%emt 0:00:00]} cxd4 {[%emt 0:00:00]} 4. Nxd4 {[%emt 0:00:00]} a6 {[%emt 0:00:05]} 5. Bd3 {[%emt 0:00:14]} Qc7 {[%emt 0:00:26]} 6. O-O {[%emt 0:00:09]} Nc6 {[%emt 0:01:29]} 7. Be3 {[%emt 0:02:43]} Nf6 {[%emt 0:00:42]} 8. Nc3 {[%emt 0:02:39]} b5 {[%emt 0:03:13]} 9. a3 {[%emt 0:04:25]} Bb7 {[%emt 0:00:31]} 10. Qe2 {[%emt 0:01:41]} Bd6 {[%emt 0:09:23]} 11. f4 {[%emt 0:10:50]} Nxd4 {[%emt 0:19:04]} 12. Bxd4 {[%emt 0:00:18]} e5 {[%emt 0:01:18]} 13. fxe5 {[%emt 0:01:09]} Bxe5 {[%emt 0:00:05]} 14. Bxe5 {[%emt 0:00:11]} Qxe5 {[%emt 0:00:11]} 15. Rf5 {[%emt 0:00:42]} Qd4+ {[%emt 0:00:10]} 16. Kh1 {[%emt 0:02:51]} g6 {[%emt 0:07:43]} 17. Rf4 {[%emt 0:30:11]} O-O {[%emt 0:05:13]} 18. Raf1 {[%emt 0:09:45]} Nh5 {[%emt 0:00:22]} 19. Rh4 {[%emt 0:00:42]} Ng7 {[%emt 0:02:33]} 20. Qd2 {[%emt 0:03:02]} Ne6 {[%emt 0:10:09]} 21. Qh6 {[%emt 0:02:00]} Qg7 {[%emt 0:00:03]} 22. Qe3 {[%emt 0:00:26]} Rac8 {[%emt 0:08:50]} 23. Nd1 {[%emt 0:07:39]} Rc5 {[%emt 0:07:36]} 24. c3 {[%emt 0:05:52]} Rfc8 {[%emt 0:00:32]} 25. Nf2 {[%emt 0:03:33]} h5 {[%emt 0:03:05]} 26. Bc2 {[%emt 0:00:08]} Qf6 {[%emt 0:03:34]} 27. Rh3 {[%emt 0:02:14]} Qg5 {[%emt 0:00:03]} 28. Qe1 {[%emt 0:03:21]} Re5 {[%emt 0:03:20]} 29. Rg3 {[%emt 0:00:20]} Qe7 {[%emt 0:01:03]} 30. Qd2 {[%emt 0:03:21]} Kg7 {[%emt 0:03:27]} 31. Rf3 {[%emt 0:02:51]} Ng5 {[%emt 0:03:14]} 32. Rf4 {[%emt 0:00:13]} Ne6 {[%emt 0:01:10]} 33. Rf3 {[%emt 0:00:01]} Ng5 {[%emt 0:00:01]} 34. Rf4 {[%emt 0:01:43]} Rf8 {[%emt 0:01:28]} 35. Rd1 {[%emt 0:01:15]} Ne6 {[%emt 0:01:28]} 36. Rf3 {[%emt 0:00:07]} Rd8 {[%emt 0:01:21]} 37. Rd3 {[%emt 0:01:06]} Bxe4 {[%emt 0:02:18]} 38. Nxe4 {[%emt 0:00:12]} Rxe4 {[%emt 0:00:02]} 39. Rd6 {[%emt 0:00:08]} Re5 {[%emt 0:00:49]} 40. Rxa6 {[%emt 0:00:00]} d5 {[%emt 0:00:00]} 41. Re1 {[%emt 0:00:00]} Qg5 {[%emt 0:00:00]} 42. Qf2 {[%emt 0:00:00]} Qf4 {[%emt 0:00:00]} 43. Qg1 {[%emt 0:00:00]} d4 {[%emt 0:00:00]} 44. cxd4 {[%emt 0:00:00]} Rxd4 {[%emt 0:00:00]} 45. Rf1 {[%emt 0:00:00]} Qd2 {[%emt 0:00:00]} 46. h3 {[%emt 0:00:00]} Rf4 {[%emt 0:00:00]} 47. Rc1 {[%emt 0:00:00]} Rf2 {[%emt 0:00:00]} 48. Rd6 {[%emt 0:00:00]} Qf4 {[%emt 0:01:06]} 49. Rdd1 {[%emt 0:00:00]} Ng5 {[%emt 0:00:31]} 50. Qh2 {[%emt 0:02:51]} Qxh2+ {[%emt 0:00:41]} 51. Kxh2 {[%emt 0:00:01]} Ree2 {[%emt 0:00:02]} 0-1